fUST/lending_fUST_20251019
["ID","MTS","AMOUNT","RATE_DAILY","PERIOD"]
[391818462,1760875850157,-151.0,0.0003898,120]
[391818463,1760875850168,-151.0,0.0003898,120]
[391818464,1760875850177,-151.0,0.0003898,120]
[391818465,1760875850187,-151.0,0.0003898,120]
[391818466,1760875850198,-568.206245,0.0003898,120]
[391818467,1760875850207,-568.206245,0.0003898,120]
[391818468,1760875850218,-568.206245,0.0003898,120]
[391818469,1760875850242,-568.206245,0.0003898,120]
[391818470,1760875850266,-151.0,0.0003898,120]
[391818471,1760875850290,-231.866299,0.0003898,120]
[391818472,1760875850313,-151.0,0.0003898,120]
[391818473,1760875850335,-176.184892,0.0003898,120]
[391818474,1760875850361,-152.335663,0.0003898,120]
[391818475,1760875850383,-176.184892,0.0003898,120]
[391818476,1760875850405,-176.184892,0.0003898,120]
[391818477,1760875850428,-176.184892,0.0003898,120]
[391818478,1760875850450,-218.95049,0.0003898,120]
[391818479,1760875850471,-151.0,0.0003898,120]
[391818480,1760875850493,-151.0,0.0003898,120]
[391818481,1760875850515,-495.377012,0.0003898,120]
[391818482,1760875850537,-151.0,0.0003898,120]
[391818483,1760875850550,-495.377012,0.0003898,120]
[391818484,1760875850560,-495.377012,0.0003898,120]
[391818485,1760875850569,-495.377012,0.0003898,120]
[391818486,1760875850579,-3232.709359,0.0003898,120]
[391818487,1760875850588,-3232.709359,0.0003898,120]
[391818488,1760875850598,-3232.709359,0.0003898,120]
[391818489,1760875850608,-3232.709359,0.0003898,120]
[391818490,1760875850618,-151.0,0.0003898,120]
[391818491,1760875850627,-151.0,0.0003898,120]
[391818492,1760875850637,-151.0,0.0003898,120]
[391818493,1760875850646,-151.0,0.0003898,120]
[391818494,1760875850656,-1127.476218,0.0003898,120]
[391818495,1760875850665,-1127.476218,0.0003898,120]
[391818496,1760875850675,-1127.476218,0.0003898,120]
[391818497,1760875850685,-1127.476218,0.0003898,120]
[391818498,1760875850695,-151.0,0.0003898,120]
[391818499,1760875850705,-987.652332,0.0003898,120]
[391818500,1760875850715,-987.652332,0.0003898,120]
[391818501,1760875850724,-987.652332,0.0003898,120]
[391818502,1760875850737,-151.0,0.0003898,120]
[391818503,1760875850747,-987.652332,0.0003898,120]
[391818504,1760875850757,-230.900056,0.0003898,120]
[391818505,1760875850767,-151.0,0.0003898,120]
[391818506,1760875850777,-230.900056,0.0003898,120]
[391818507,1760875850786,-151.0,0.0003898,120]
[391818508,1760875850796,-230.900056,0.0003898,120]
[391818509,1760875850806,-151.0,0.0003898,120]
[391818510,1760875850818,-230.900056,0.0003898,120]
[391818511,1760875850828,-151.0,0.0003898,120]
[391818512,1760875850837,-151.0,0.0003898,120]
[391818513,1760875850847,-151.0,0.0003898,120]
[391818514,1760875850856,-151.0,0.0003898,120]
[391818515,1760875850866,-151.0,0.0003898,120]
[391818516,1760875850876,-151.0,0.0003898,120]
[391818517,1760875850886,-151.0,0.0003898,120]
[391818518,1760875850895,-151.0,0.0003898,120]
[391818519,1760875850904,-220.907176,0.0003898,120]
[391818520,1760875850914,-156.992802,0.0003898,120]
[391818521,1760875850924,-220.907176,0.0003898,120]
[391818522,1760875850933,-220.907176,0.0003898,120]
[391818523,1760875850943,-220.907176,0.0003898,120]
[391818524,1760875850953,-154.711884,0.0003898,120]
[391818525,1760875850963,-151.0,0.0003898,120]
[391818526,1760875850972,-151.0,0.0003898,120]
[391818527,1760875850982,-154.711884,0.0003898,120]
[391818528,1760875850992,-154.711884,0.0003898,120]
[391818529,1760875851002,-151.0,0.0003898,120]
[391818530,1760875851012,-154.711884,0.0003898,120]
[391818531,1760875851021,-151.0,0.0003898,120]
[391818532,1760875851031,-154.079844,0.0003898,120]
[391818533,1760875851041,-151.0,0.0003898,120]
[391818534,1760875851051,-151.0,0.0003898,120]
[391818535,1760875851062,-30021.14153416,0.0003898,3]
[391818536,1760875943399,150.0,0.00025205,2]
[391818537,1760875943976,150.0,0.00025805,2]
[391818579,1760877032613,-416.81352142,0.0002739,2]
[391818580,1760877032623,-198.61872083,0.0002739,2]
[391818581,1760877032641,-150.0,0.0002739,2]
[391818582,1760877032653,-296.44372343,0.0003,120]
[391818583,1760877032663,-69.57031412,0.00034919,2]
[391818584,1760877032676,-674.19396143,0.00034919,2]
[391818585,1760877032688,-500.0,0.00035483,2]
[391818587,1760877032698,-205.42048768,0.00035657,2]
[391818588,1760877032708,-895.0,0.00036388,3]
[391818589,1760877032718,-170.245949,0.00036389,2]
[391818590,1760877032728,-165.56156063,0.00036955,2]
[391818591,1760877032738,-743.76427555,0.00037,120]
[391818592,1760877032748,-400.0,0.00037053,2]
[391818593,1760877032757,-1956.21427984,0.00037055,120]
[391818594,1760877032769,-43.78572016,0.00037055,120]
[391818595,1760877032779,-2000.0,0.00037055,120]
[391818596,1760877032788,-2000.0,0.00037055,120]
[391818597,1760877032798,-2000.0,0.00037055,120]
[391818598,1760877032808,-2000.0,0.00037055,120]
[391818599,1760877032817,-2000.0,0.00037055,120]
[391818600,1760877032827,-2000.0,0.00037055,120]
[391818601,1760877032837,-2000.0,0.00037055,120]
[391818602,1760877032846,-304.04070945,0.00037055,120]
[391818603,1760877032859,-550.0,0.00037055,120]
[391818604,1760877032870,-1145.95929055,0.00037055,120]
[391818605,1760877032879,-2000.0,0.00037055,120]
[391818606,1760877032889,-2000.0,0.00037055,120]
[391818607,1760877032898,-2000.0,0.00037055,120]
[391818608,1760877032910,-2000.0,0.00037055,120]
[391818609,1760877032920,-2000.0,0.00037055,120]
[391818610,1760877032929,-2000.0,0.00037055,120]
[391818611,1760877032940,-2000.0,0.00037055,120]
[391818612,1760877032950,-2000.0,0.00037055,120]
[391818613,1760877032960,-1541.77,0.00037055,120]
[391818614,1760877032969,-915.4,0.00037158,2]
[391818615,1760877032979,-170.245949,0.0003724,60]
[391818616,1760877032989,-273.0,0.00037524,120]
[391818617,1760877032998,-237.67568847,0.00037599,5]
[391818618,1760877033008,-1140.8613495,0.00037915,2]
[391818619,1760877033018,-411.0,0.00037967,2]
[391818620,1760877033028,-269.38362758,0.00037972,2]
[391818628,1760877038419,-97.94875823,0.00037972,2]
[391818629,1760877038429,-4080.2721664,0.00038,120]
[391818630,1760877038441,-187.0,0.00038056,7]
[391818631,1760877038451,-160.0,0.0003815,2]
[391818632,1760877038461,-201.61,0.000382,2]
[391818633,1760877038471,-170.245949,0.00038204,30]
[391818634,1760877038481,-187.0,0.00038265,2]
[391818635,1760877038490,-187.0,0.00038284,120]
[391818636,1760877038500,-396.9449459,0.00038356,30]
[391818637,1760877038511,-103.0550541,0.00038356,30]
[391818638,1760877038521,-352.64911686,0.00038356,30]
[391818639,1760877038532,-147.35088314,0.00038356,30]
[391818640,1760877038543,-4112.08018806,0.0003867,2]
[391818641,1760877038558,-260.0,0.00038698,2]
[391818642,1760877038568,-966.4954282,0.000388,2]
[391818643,1760877038578,-192.99093076,0.00038879,15]
[391818644,1760877038588,-835.73564354,0.0003888,120]
[391818645,1760877038601,-1163.26435646,0.0003888,120]
[391818646,1760877038611,-500.0,0.0003888,30]
[391818647,1760877038620,-500.00000041,0.0003888,30]
[391818648,1760877038630,-1341.93558923,0.0003888,3]
[391818690,1760877040652,-567.41619488,0.0003888,3]
[391818692,1760877040663,-626.36421079,0.0003888,3]
[391818698,1760877040712,-538.05,0.0003888,3]
[391818751,1760877043756,-530.15,0.0003888,3]
[391818841,1760877046715,-20743.05812405,0.0003888,3]
[391818842,1760877046727,-2430.96192476,0.0003888,3]
[391818843,1760877164719,150.0,0.00025205,2]
[391818844,1760877165221,242.21565701,0.00025805,2]
[391818855,1760878088857,164.0,0.00024,120]
[391818857,1760878148559,158.58148,0.00013699,2]
[391818858,1760878148764,158.58148,0.00021918,2]
[391818888,1760878231665,-158.58148,0.00030137,2]
[391818891,1760878231676,-153.26,0.00031411,15]
[391818893,1760878231685,-153.26,0.00031511,15]
[391818894,1760878231695,-153.26,0.00031611,15]
[391818897,1760878231705,-250.0,0.00033304,2]
[391818899,1760878231715,-221.0700234,0.00033939,2]
[391818901,1760878231725,-412.00027764,0.00034,2]
[391818903,1760878231740,-253.99972236,0.00034,2]
[391818905,1760878231750,-214.9491171,0.00034097,2]
[391818907,1760878231761,-400.0,0.00034149,2]
[391818909,1760878231774,-327.0,0.00034149,3]
[391818911,1760878231783,-411.97567781,0.00034919,2]
[391818913,1760878231799,-49588.02432219,0.00034919,2]
[391818916,1760878231809,-371.88213777,0.00034919,2]
[391818918,1760878231819,-800.0,0.00035341,3]
[391818920,1760878231828,-4596.274617,0.00035342,120]
[391818922,1760878231836,-964.81,0.00035696,2]
[391818924,1760878231845,-300.0,0.00036048,30]
[391818926,1760878231855,-300.0,0.00036048,30]
[391818928,1760878231864,-300.0,0.00036048,30]
[391818930,1760878231874,-300.0,0.00036048,30]
[391818933,1760878231885,-300.0,0.00036048,30]
[391818935,1760878231894,-984.0,0.000361,60]
[391818936,1760878231904,-5000.0,0.00036151,4]
[391818939,1760878231914,-320.0,0.00036648,2]
[391818941,1760878231923,-265.0,0.00036869,2]
[391818943,1760878231932,-371.88213777,0.00037,120]
[391818945,1760878231942,-160.0,0.00037,2]
[391818947,1760878231952,-199.0,0.00037221,7]
[391818949,1760878231962,-199.0,0.00037495,8]
[391818950,1760878231971,-260.0,0.00037548,2]
[391818952,1760878231981,-265.0,0.00037719,2]
[391818954,1760878231990,-199.0,0.00037769,9]
[391818956,1760878231999,-165.56156058,0.00037789,2]
[391818957,1760878232008,-690.6303086,0.0003779,2]
[391818958,1760878232018,-2534.1015239,0.000378,2]
[391818959,1760878232029,-690.63030858,0.00037818,2]
[391818960,1760878232039,-690.63030858,0.00037845,2]
[391818961,1760878232049,-419.80844092,0.00037847,2]
[391818962,1760878232058,-308.18624521,0.00037847,2]
[391818963,1760878232067,-655.29473825,0.00037847,2]
[391818964,1760878232078,-375.1072973,0.00037847,2]
[391818965,1760878232088,-258.11583919,0.00037847,2]
[391818966,1760878232098,-402.90269273,0.00037847,2]
[391818967,1760878232107,-690.63030858,0.00037873,2]
[391818968,1760878232116,-524.87285329,0.00037873,5]
[391818969,1760878232126,-813.67,0.00037879,10]
[391818970,1760878232135,-976.4,0.0003788,10]
[391818971,1760878232144,-12191.84854281,0.00037889,3]
[391818972,1760878232157,-638.84857,0.00037889,3]
[391818973,1760878232169,-8630.68467469,0.00037889,3]
[391818974,1760878232179,-1270.66081988,0.00037889,3]
[391818975,1760878232189,-1999.0,0.00037889,120]
[391818976,1760878232199,-73764.49344095,0.0003789,3]
[391818977,1760878232211,-1559.12554849,0.0003789,3]
[391818978,1760878232222,-487.43371295,0.0003789,3]
[391819003,1760878237601,-200.0,0.000334,120]
[391819006,1760878237615,-200.0,0.000353,120]
[391819008,1760878237624,-115.55338804,0.000372,120]
[391819012,1760878237656,-84.44661196,0.000372,120]
[391819014,1760878237666,-678.05,0.00037879,10]
[391819016,1760878237675,-211.56929163,0.00037888,15]
[391819017,1760878237686,-1207.4654766,0.0003789,3]
[391819199,1760878239625,-8276.49557963,0.0003789,3]
[391819202,1760878239735,-17441.88899685,0.0003789,3]
[391819205,1760878239767,-68954.15154453,0.0003789,3]
[391819206,1760878239777,-5897.51468778,0.0003789,3]
[391819207,1760878239847,-4267.77187122,0.0003789,3]
[391819208,1760878239857,-13785.09229918,0.000379,2]
[391819209,1760878239871,-10590.0,0.000379,2]
[391819239,1760878245834,-200.0,0.00034918,7]
[391819240,1760878245843,-565.05,0.0003789,10]
[391819241,1760878245853,-1940.0926011,0.000379,2]
[391819242,1760878245864,-5615.02255705,0.000379,2]
[391819243,1760878245875,-148659.43010559,0.000379,2]
[391819244,1760878384726,217.5,0.00025205,2]
[391819245,1760878984553,174.61940654,0.00028155,2]
[391819246,1760878999635,150.0,0.00025205,2]
[391819262,1760879431833,-445.0,0.00028,2]
[391819264,1760879431843,-88.7541954,0.00029,2]
[391819272,1760879431943,-356.2458046,0.00029,2]
[391819273,1760879431952,-610.09090637,0.00029254,2]
[391819274,1760879431961,-1305.1333892,0.0002978,2]
[391819275,1760879431970,-445.0,0.0003,2]
[391819276,1760879431979,-163.24,0.00031431,15]
[391819277,1760879431988,-163.24,0.00031531,15]
[391819278,1760879431997,-163.24,0.00031631,15]
[391819279,1760879432006,-163.24,0.00031731,15]
[391819280,1760879432015,-163.262,0.00031831,15]
[391819281,1760879432024,-300.0,0.00032383,3]
[391819282,1760879432033,-337.0,0.00032383,3]
[391819283,1760879432042,-300.0,0.00032383,3]
[391819284,1760879432051,-400.0,0.00032383,2]
[391819286,1760879432059,-300.0,0.00032383,3]
[391819287,1760879432068,-1200.0,0.00032383,3]
[391819289,1760879432078,-972.56,0.00032384,2]
[391819291,1760879432087,-4090.75866435,0.00032384,2]
[391819293,1760879432098,-21893.66206967,0.00032384,2]
[391819295,1760879432107,-150.0,0.00033,120]
[391819297,1760879432117,-194.0,0.00033,30]
[391819299,1760879432126,-250.0,0.00033304,2]
[391819301,1760879432136,-1945.13,0.00033907,2]
[391819303,1760879432145,-186.74079876,0.00034032,2]
[391819305,1760879432154,-1200.0,0.0003413,3]
[391819307,1760879432163,-150.0,0.00034132,2]
[391819309,1760879432173,-322.82054699,0.0003418,2]
[391819311,1760879432182,-279.416337,0.00034214,60]
[391819313,1760879432191,-224.0,0.00034691,30]
[391819315,1760879432200,-195.0,0.00034791,30]
[391819317,1760879432210,-560.0,0.00034816,2]
[391819319,1760879432219,-667.99708108,0.00034919,2]
[391819321,1760879432228,-150.0,0.00035,120]
[391819323,1760879432238,-199.0,0.000352,7]
[391819325,1760879432247,-938.3085852,0.00035201,2]
[391819327,1760879432256,-2917.69,0.00035448,2]
[391819329,1760879432267,-199.0,0.00035474,8]
[391819331,1760879432278,-4181.03321279,0.00035613,2]
[391819333,1760879432287,-199.0,0.00035748,9]
[391819335,1760879432297,-199.0,0.00036022,10]
[391819337,1760879432307,-182.5,0.00036296,11]
[391819339,1760879432318,-3890.25,0.00036989,2]
[391819341,1760879432327,-1000.0,0.00037,10]
[391819343,1760879432336,-150.0,0.00037,120]
[391819345,1760879432347,-667.99708108,0.00037,120]
[391819347,1760879432356,-166.38707,0.00037,120]
[391819349,1760879432365,-227.1,0.00037125,120]
[391819351,1760879432375,-544.48474737,0.000372,2]
[391819353,1760879432385,-411.0,0.00037334,2]
[391819355,1760879432395,-347.0,0.00037432,2]
[391819357,1760879432404,-1500.22249942,0.000375,2]
[391819359,1760879432414,-2949.24850821,0.000375,2]
[391819361,1760879432423,-1500.22249939,0.00037573,2]
[391819363,1760879432432,-470.87,0.0003758,10]
[391819365,1760879432442,-392.39,0.0003758,10]
[391819367,1760879432451,-326.99,0.0003758,10]
[391819369,1760879432460,-305.65131083,0.00037589,15]
[391819371,1760879432470,-219454.93331157,0.0003759,3]
[391819374,1760879432481,-71397.44535043,0.0003759,3]
[391819376,1760879432491,-5590.90760744,0.0003759,3]
[391819378,1760879432499,-1999.0,0.00037599,120]
[391819380,1760879432508,-370000.0,0.000376,2]
[391819382,1760879432518,-654.31967,0.000376,120]
[391819384,1760879432528,-654.31967,0.000376,120]
[391819385,1760879432537,-151.0,0.000376,120]
[391819388,1760879432547,-654.31967,0.000376,120]
[391819390,1760879432558,-151.0,0.000376,120]
[391819392,1760879432567,-654.31967,0.000376,120]
[391819394,1760879432576,-292.955674,0.000376,120]
[391819396,1760879432585,-292.955674,0.000376,120]
[391819397,1760879432595,-292.955674,0.000376,120]
[391819399,1760879432604,-292.955674,0.000376,120]
[391819402,1760879432614,-151.0,0.000376,120]
[391819404,1760879432624,-151.0,0.000376,120]
[391819406,1760879432633,-151.0,0.000376,120]
[391819408,1760879432643,-224.988351,0.000376,120]
[391819410,1760879432652,-197.123568,0.000376,120]
[391819412,1760879432662,-151.0,0.000376,120]
[391819413,1760879432671,-151.0,0.000376,120]
[391819416,1760879432681,-151.0,0.000376,120]
[391819418,1760879432690,-151.0,0.000376,120]
[391819431,1760879432804,-151.0,0.000376,120]
[391819433,1760879432815,-151.0,0.000376,120]
[391819435,1760879432825,-151.0,0.000376,120]
[391819437,1760879432834,-151.0,0.000376,120]
[391819439,1760879432844,-151.0,0.000376,120]
[391819441,1760879432854,-151.0,0.000376,120]
[391819443,1760879432863,-153.812008,0.000376,120]
[391819446,1760879432873,-4000.0,0.000376,2]
[391819447,1760879432882,-1500.22249939,0.00037645,2]
[391819450,1760879432891,-160.0,0.00037657,2]
[391819451,1760879432901,-698.86345093,0.0003769,3]
[391819454,1760879432911,-32462.08140477,0.000377,30]
[391819456,1760879432920,-296.0,0.00037709,2]
[391819458,1760879432933,-1500.22249939,0.00037718,2]
[391819460,1760879432943,-151.0,0.00037718,120]
[391819462,1760879432951,-151.0,0.00037718,120]
[391819464,1760879432960,-151.0,0.00037718,120]
[391819466,1760879432969,-151.0,0.00037718,120]
[391819468,1760879432979,-234.886112,0.00037718,120]
[391819469,1760879432988,-151.0,0.00037718,120]
[391819471,1760879432998,-151.0,0.00037718,120]
[391819473,1760879433007,-151.0,0.00037718,120]
[391819475,1760879433016,-1500.22249939,0.0003779,2]
[391819477,1760879433026,-151.0,0.0003779,120]
[391819479,1760879433035,-239.925448,0.0003779,120]
[391819481,1760879433044,-151.0,0.0003779,120]
[391819483,1760879433054,-151.0,0.0003779,120]
[391819485,1760879433064,-151.0,0.0003779,120]
[391819487,1760879433073,-151.0,0.0003779,120]
[391819489,1760879433082,-151.0,0.0003779,120]
[391819491,1760879433091,-151.0,0.0003779,120]
[391819493,1760879433100,-151.0,0.0003779,120]
[391819495,1760879433109,-151.0,0.0003779,120]
[391819497,1760879433118,-151.0,0.0003779,120]
[391819499,1760879433128,-151.0,0.0003779,120]
[391819501,1760879433137,-151.0,0.0003779,120]
[391819503,1760879433146,-151.0,0.0003779,120]
[391819505,1760879433155,-202.328362,0.0003779,120]
[391819507,1760879433164,-297.226208,0.0003779,120]
[391819509,1760879433173,-2171.669321,0.0003779,120]
[391819511,1760879433182,-297.226208,0.0003779,120]
[391819513,1760879433191,-2171.669321,0.0003779,120]
[391819515,1760879433200,-297.226208,0.0003779,120]
[391819517,1760879433209,-2171.669321,0.0003779,120]
[391819519,1760879433218,-297.226208,0.0003779,120]
[391819521,1760879433227,-2171.669321,0.0003779,120]
[391819522,1760879433237,-151.0,0.0003779,120]
[391819523,1760879433246,-151.0,0.0003779,120]
[391819524,1760879433255,-151.0,0.0003779,120]
[391819525,1760879433266,-151.0,0.0003779,15]
[391819526,1760879433277,-151.0,0.0003779,15]
[391819527,1760879433286,-151.0,0.0003779,15]
[391819528,1760879433295,-151.0,0.0003779,120]
[391819530,1760879433305,-245.345493,0.0003779,120]
[391819532,1760879433315,-245.345493,0.0003779,120]
[391819534,1760879433323,-1161.46631,0.0003779,120]
[391819536,1760879433333,-245.345493,0.0003779,120]
[391819537,1760879433342,-1161.46631,0.0003779,120]
[391819538,1760879433352,-245.345493,0.0003779,120]
[391819539,1760879433360,-1161.46631,0.0003779,120]
[391819540,1760879433370,-1161.46631,0.0003779,120]
[391819541,1760879433379,-151.0,0.0003779,120]
[391819542,1760879433388,-654.31967,0.0003779,120]
[391819543,1760879433398,-654.31967,0.0003779,120]
[391819544,1760879433407,-151.0,0.0003779,120]
[391819545,1760879433417,-654.31967,0.0003779,120]
[391819546,1760879433426,-151.0,0.0003779,120]
[391819547,1760879433435,-654.31967,0.0003779,120]
[391819548,1760879433443,-292.955674,0.0003779,120]
[391819549,1760879433452,-292.955674,0.0003779,120]
[391819550,1760879433461,-292.955674,0.0003779,120]
[391819551,1760879433470,-292.955674,0.0003779,120]
[391819552,1760879433479,-151.0,0.0003779,120]
[391819553,1760879433489,-151.0,0.0003779,120]
[391819554,1760879433498,-151.0,0.0003779,120]
[391819555,1760879433507,-151.0,0.0003779,120]
[391819556,1760879433516,-10000.0,0.000378,60]
[391819557,1760879433525,-151.0,0.000378,120]
[391819558,1760879433534,-151.0,0.000378,120]
[391819559,1760879433543,-151.0,0.000378,120]
[391819560,1760879433552,-151.0,0.000378,120]
[391819561,1760879433561,-151.0,0.000378,120]
[391819562,1760879433571,-151.0,0.0003787,120]
[391819563,1760879433580,-151.0,0.0003787,120]
[391819564,1760879433589,-151.0,0.0003787,120]
[391819565,1760879433597,-151.0,0.0003787,120]
[391819566,1760879433606,-151.0,0.0003787,120]
[391819567,1760879433615,-177.893224,0.0003787,120]
[391819568,1760879433625,-151.0,0.0003787,120]
[391819569,1760879433634,-151.0,0.0003787,120]
[391819570,1760879433643,-151.0,0.0003787,120]
[391819571,1760879433652,-151.0,0.0003787,120]
[391819572,1760879433661,-151.0,0.0003787,120]
[391819573,1760879433670,-151.0,0.0003787,120]
[391819574,1760879433679,-698.86345093,0.0003787,3]
[391819575,1760879433688,-254.557976,0.0003787,120]
[391819576,1760879433697,-297.226208,0.0003787,120]
[391819577,1760879433706,-2171.669321,0.0003787,120]
[391819578,1760879433715,-297.226208,0.0003787,120]
[391819579,1760879433724,-2171.669321,0.0003787,120]
[391819580,1760879433733,-297.226208,0.0003787,120]
[391819581,1760879433742,-2171.669321,0.0003787,120]
[391819582,1760879433751,-297.226208,0.0003787,120]
[391819583,1760879433760,-2171.669321,0.0003787,120]
[391819584,1760879433769,-151.0,0.0003787,120]
[391819585,1760879433779,-151.0,0.0003787,120]
[391819586,1760879433787,-151.0,0.0003787,120]
[391819587,1760879433796,-151.0,0.0003787,15]
[391819588,1760879433805,-151.0,0.0003787,15]
[391819589,1760879433815,-151.0,0.0003787,15]
[391819590,1760879433827,-151.0,0.0003787,120]
[391819591,1760879433839,-245.345493,0.0003787,120]
[391819592,1760879433850,-245.345493,0.0003787,120]
[391819593,1760879433862,-1161.46631,0.0003787,120]
[391819594,1760879433874,-245.345493,0.0003787,120]
[391819595,1760879433884,-1161.46631,0.0003787,120]
[391819596,1760879433894,-245.345493,0.0003787,120]
[391819597,1760879433904,-1161.46631,0.0003787,120]
[391819598,1760879433916,-1161.46631,0.0003787,120]
[391819599,1760879433927,-151.0,0.0003787,120]
[391819600,1760879433938,-151.0,0.0003787,120]
[391819601,1760879433948,-151.0,0.0003787,120]
[391819602,1760879433959,-151.0,0.0003787,120]
[391819603,1760879433970,-151.0,0.0003787,120]
[391819604,1760879433981,-151.0,0.0003787,120]
[391819605,1760879433992,-151.0,0.0003787,120]
[391819606,1760879434002,-151.0,0.0003787,120]
[391819607,1760879434013,-698.86345093,0.00037875,3]
[391819608,1760879434025,-856.3,0.0003788,3]
[391819609,1760879434038,-151.0,0.0003788,120]
[391819610,1760879434048,-151.0,0.0003788,120]
[391819611,1760879434060,-151.0,0.0003788,120]
[391819612,1760879434070,-151.0,0.0003788,7]
[391819613,1760879434081,-151.0,0.0003788,7]
[391819614,1760879434093,-151.0,0.0003788,120]
[391819615,1760879434103,-151.0,0.0003788,120]
[391819616,1760879434114,-161.127236,0.0003788,120]
[391819617,1760879434124,-161.127236,0.0003788,120]
[391819618,1760879434135,-161.127236,0.0003788,120]
[391819619,1760879434147,-161.127236,0.0003788,120]
[391819620,1760879434158,-151.0,0.0003788,120]
[391819621,1760879434169,-151.0,0.0003788,120]
[391819622,1760879434180,-280.590472,0.0003788,120]
[391819623,1760879434190,-151.0,0.0003788,120]
[391819624,1760879434200,-151.0,0.0003788,120]
[391819625,1760879434210,-151.0,0.0003788,120]
[391819626,1760879434221,-151.0,0.0003788,120]
[391819627,1760879434231,-227.282498,0.0003788,120]
[391819628,1760879434243,-227.282498,0.0003788,120]
[391819629,1760879434254,-227.282498,0.0003788,120]
[391819630,1760879434267,-227.282498,0.0003788,120]
[391819631,1760879434281,-227.282498,0.0003788,120]
[391819632,1760879434293,-227.282498,0.0003788,120]
[391819633,1760879434304,-227.282498,0.0003788,120]
[391819634,1760879434317,-227.282498,0.0003788,120]
[391819635,1760879434329,-151.0,0.0003788,120]
[391819636,1760879434341,-151.0,0.0003788,2]
[391819637,1760879434353,-262.26116938,0.0003788,2]
[391819638,1760879434366,-151.0,0.0003788,120]
[391819639,1760879434377,-151.0,0.0003788,120]
[391819640,1760879434387,-151.0,0.0003788,120]
[391819641,1760879434397,-151.0,0.0003788,120]
[391819642,1760879434407,-153.365986,0.0003788,120]
[391819643,1760879434416,-151.0,0.0003788,120]
[391819644,1760879434426,-151.0,0.0003788,120]
[391819645,1760879434437,-151.0,0.0003788,120]
[391819646,1760879434448,-151.0,0.0003788,120]
[391819647,1760879434459,-151.0,0.0003788,120]
[391819648,1760879434472,-151.0,0.0003788,120]
[391819649,1760879434483,-151.0,0.0003788,120]
[391819650,1760879434495,-151.0,0.0003788,120]
[391819651,1760879434505,-202.793045,0.0003788,120]
[391819652,1760879434515,-151.0,0.0003788,120]
[391819653,1760879434526,-151.0,0.0003788,120]
[391819654,1760879434537,-151.0,0.0003788,120]
[391819655,1760879434547,-151.0,0.0003788,120]
[391819656,1760879434559,-151.0,0.0003788,120]
[391819657,1760879434570,-151.0,0.0003788,120]
[391819658,1760879434580,-151.0,0.0003788,120]
[391819659,1760879434590,-153.352666,0.0003788,120]
[391819660,1760879434600,-151.0,0.0003788,120]
[391819661,1760879434611,-151.0,0.0003788,120]
[391819662,1760879434621,-151.0,0.0003788,120]
[391819663,1760879434631,-151.0,0.0003788,120]
[391819664,1760879434642,-297.226208,0.0003788,120]
[391819665,1760879434653,-2171.669321,0.0003788,120]
[391819666,1760879434663,-297.226208,0.0003788,120]
[391819667,1760879434674,-2171.669321,0.0003788,120]
[391819668,1760879434685,-297.226208,0.0003788,120]
[391819669,1760879434696,-2171.669321,0.0003788,120]
[391819670,1760879434706,-297.226208,0.0003788,120]